bitfinex-derivatives/quotes_ETHF0:USTF0_20250417
["timestamp","ask_amount","ask_price","bid_price","bid_amount"]
[1744887555871,1.25521,1593.8,1593.7,0.88830763]
[1744887556065,3.72171,1593.8,1593.7,0.88830763]
[1744887556683,3.72171,1593.8,1593.7,2.14359763]
[1744887557676,3.72171,1593.8,1593.7,0.00940763]
[1744887559775,3.72171,1593.8,1593.7,1.26469763]
[1744887567780,3.72171,1593.8,1593.7,3.00129763]
[1744887568582,3.72171,1593.8,1593.7,1.26469763]
[1744887570376,3.72171,1593.8,1593.7,0.00940763]
[1744887573184,3.72171,1593.8,1593.7,1.26469763]
[1744887575580,3.72171,1593.8,1593.7,0.00940763]
[1744887576192,3.72171,1593.8,1593.7,1.26469763]
[1744887577489,2.85991,1593.8,1593.7,1.26469763]
[1744887577689,2.85991,1593.8,1593.7,3.69879763]
[1744887578192,6.27599449,1593.9,1593.8,1.25521]
[1744887578394,5.44989449,1593.9,1593.8,3.82331]
[1744887579090,7.11829449,1593.9,1593.8,3.82331]
[1744887580197,5.44989449,1593.9,1593.8,3.82331]
[1744887580689,7.11829449,1593.9,1593.8,3.82331]
[1744887581492,2.92358,1593.9,1593.8,3.82331]
[1744887590115,1.25521,1593.8,1593.7,0.00940763]
[1744887590306,3.80241,1593.8,1593.7,0.00940763]
[1744887591717,3.80241,1593.8,1593.7,1.26469763]
[1744887592417,3.80241,1593.8,1593.7,3.02749763]
[1744887593412,5.44990449,1593.9,1593.8,1.25521]
[1744887593712,7.98810449,1593.9,1593.8,2.95691]
[1744887596026,4.19471449,1593.9,1593.8,2.95691]
[1744887596214,4.19471449,1593.9,1593.8,3.79501]
[1744887596722,8.83871449,1594.0,1593.9,1.25513]
[1744887596924,8.82949762,1594.0,1593.9,2.98043]
[1744887598528,7.57439762,1594.0,1593.9,2.98043]
[1744887598824,4.19471449,1594.0,1593.9,2.98043]
[1744887599018,4.19471449,1594.0,1593.9,3.79423]
[1744887600331,4.19471449,1594.0,1593.9,8.79423]
[1744887601625,8.39158429,1594.2,1594.1,1.25497]
[1744887601820,8.39158429,1594.2,1594.1,8.50177]
[1744887602228,8.39158429,1594.2,1594.1,6.97297]
[1744887602825,9.26998429,1594.2,1594.1,6.97297]
[1744887603020,10.88518429,1594.2,1594.1,6.97297]
[1744887604431,2.4936,1594.2,1594.1,6.97297]
[1744887604626,0.00940763,1594.3,1594.2,1.25489]
[1744887604822,0.00940763,1594.3,1594.2,3.74199]
[1744887605229,0.00940763,1594.3,1594.2,8.74199]
[1744887607527,0.00940763,1594.3,1594.2,3.74199]
[1744887608520,1.25456,1594.7,1594.6,1.25458]
[1744887609227,2.95356,1594.7,1594.6,1.25458]
[1744887609527,1.699,1594.7,1594.6,1.25458]
[1744887609728,2.9535,1594.7,1594.6,1.25458]
[1744887610728,1.25466,1594.5,1594.4,1.25469]
[1744887611031,1.25466,1594.5,1594.4,4.46252]
[1744887611523,3.80856,1594.5,1594.4,1.25472]
[1744887612121,1.25487,1594.3,1594.2,1.25483]
[1744887612727,2.06677,1594.3,1594.2,1.25483]
[1744887613029,0.8119,1594.3,1594.2,1.25483]
[1744887613432,3.79822,1594.3,1594.2,1.25483]
[1744887614328,1.25489,1594.2,1594.1,1.25493]
[1744887614525,3.82039,1594.2,1594.1,1.25493]
[1744887615020,1.25497,1594.1,1594.0,9.63235673]
[1744887615229,2.87417,1594.1,1594.0,9.63235673]
[1744887615736,2.87417,1594.1,1594.0,1.25498]
[1744887617726,1.6192,1594.1,1594.0,1.25498]
[1744887620335,0.834,1594.2,1594.1,1.25497]
[1744887620536,0.834,1594.2,1594.1,2.12867]
[1744887620737,0.834,1594.2,1594.1,3.84647]
[1744887621036,0.834,1594.2,1594.1,7.05427]
[1744887621546,2.06673,1594.3,1594.2,1.25489]
[1744887621836,1.599,1594.4,1594.3,1.25482]
[1744887622028,0.7999,1594.5,1594.4,1.25474]
[1744887622230,1.6308,1594.6,1594.5,1.25466]
[1744887622432,1.6308,1594.6,1594.5,6.09866]
[1744887624435,1.6071,1594.7,1594.6,1.25458]
[1744887624638,3.2292,1594.7,1594.6,1.25458]
[1744887625235,4.4837,1594.7,1594.6,1.25458]
[1744887625732,1.25458,1594.6,1594.5,4.46243]
[1744887625937,1.2547,1594.5,1594.4,1.25468]
[1744887626137,1.6221,1594.6,1594.5,1.25466]
[1744887626337,2.87668,1594.6,1594.5,1.25466]
[1744887627637,1.6221,1594.6,1594.5,1.25466]
[1744887628029,2.87668,1594.6,1594.5,1.25466]
[1744887628739,1.6221,1594.6,1594.5,1.25466]
[1744887628936,1.6221,1594.6,1594.5,4.46246]
[1744887629436,1.6221,1594.6,1594.5,6.11116]
[1744887633442,1.6221,1594.6,1594.5,2.90336]
[1744887633638,1.6221,1594.6,1594.5,6.11116]
[1744887634143,1.6221,1594.6,1594.5,4.46246]
[1744887634344,2.87668,1594.6,1594.5,1.25466]
[1744887635143,1.6221,1594.6,1594.5,1.25466]
[1744887640247,2.87668,1594.6,1594.5,1.25466]
[1744887640547,1.6221,1594.6,1594.5,1.25466]
[1744887640955,1.6221,1594.6,1594.5,4.70276]
[1744887645759,1.6221,1594.6,1594.5,3.83116]
[1744887647457,1.6071,1594.7,1594.6,1.25458]
[1744887647659,4.5118,1594.7,1594.6,6.21788]
[1744887648053,4.5118,1594.7,1594.6,4.46238]
[1744887651462,3.2573,1594.7,1594.6,4.46238]
[1744887652565,3.2573,1594.7,1594.6,6.19388]
[1744887652866,4.5118,1594.7,1594.6,6.19388]
[1744887654765,4.5118,1594.7,1594.6,4.46238]
[1744887656070,3.2573,1594.7,1594.6,6.19808]
[1744887656966,2.4501,1594.7,1594.6,6.19808]
[1744887657566,0.00940763,1594.8,1594.7,1.2545]
[1744887657763,0.00940763,1594.8,1594.7,2.907]
[1744887662074,0.00940763,1594.8,1594.7,7.907]
[1744887663079,9.64550429,1595.5,1595.4,1.25395]
[1744887663268,11.34450429,1595.5,1595.4,1.25395]
[1744887663462,16.34450429,1595.5,1595.4,1.25395]
[1744887664367,18.01240429,1595.5,1595.4,1.25395]
[1744887665470,13.01240429,1595.5,1595.4,1.25395]
[1744887665775,4.62082,1595.5,1595.4,1.25395]
[1744887666972,3.3669,1595.5,1595.4,1.25395]
[1744887667181,6.28208174,1595.6,1595.5,1.25387]
[1744887667575,6.28208174,1595.6,1595.5,2.97577]
[1744887670183,6.28208174,1595.6,1595.5,7.97577]
[1744887670377,4.11400225,1595.6,1595.5,7.97577]
[1744887670776,4.30303407,1595.7,1595.5,12.5779]
[1744887670967,4.30303407,1595.7,1595.6,6.12889]
[1744887671175,2.87580407,1595.7,1595.6,6.12889]
[1744887671375,1.59370407,1595.7,1595.6,11.12889]
[1744887671672,0.00940763,1595.8,1595.7,1.25371]
[1744887671879,0.00940763,1595.8,1595.7,7.79741]
[1744887672073,0.00940763,1595.8,1595.7,12.79741]
[1744887672483,0.00940763,1595.8,1595.7,13.28684519]
[1744887673084,0.00940763,1595.8,1595.7,12.79741]
[1744887673281,0.00940763,1595.8,1595.7,7.79741]
[1744887673480,0.00940763,1595.8,1595.7,2.92101]
[1744887673679,0.00940763,1595.8,1595.7,6.95501]
[1744887675082,0.00940763,1595.8,1595.7,11.95501]
[1744887675276,0.00940763,1595.8,1595.7,17.81101]
[1744887676078,7.63e-06,1595.8,1595.7,17.81101]
[1744887676583,7.63e-06,1595.8,1595.7,12.81101]
[1744887677086,7.63e-06,1595.8,1595.7,13.65941]
[1744887677287,7.63e-06,1595.8,1595.7,13.65841]
[1744887677978,1.67240763,1595.8,1595.7,13.65841]
[1744887678391,7.63e-06,1595.8,1595.7,13.65841]
[1744887679185,0.82700763,1595.8,1595.7,13.65841]
[1744887680187,7.63e-06,1595.8,1595.7,13.65841]
[1744887685790,1.71460763,1595.8,1595.7,13.65841]
[1744887686395,1.71460763,1595.8,1595.7,1.25371]
[1744887686599,1.71460763,1595.8,1595.7,5.28571]
[1744887688392,1.71460763,1595.8,1595.7,6.98401]
[1744887689098,1.71460763,1595.8,1595.7,5.28571]
[1744887689296,1.71460763,1595.8,1595.7,8.49351]
[1744887690302,1.71460763,1595.8,1595.7,10.19181]
[1744887690700,7.63e-06,1595.8,1595.7,10.19181]
[1744887691002,7.63e-06,1595.8,1595.7,10.99511]
[1744887691301,7.63e-06,1595.8,1595.7,16.85111]
[1744887693804,7.63e-06,1595.8,1595.7,21.85111]
[1744887693997,0.8437,1596.1,1596.0,1.25348]
[1744887694194,0.8437,1596.1,1596.0,8.49328]
[1744887696493,2.0971,1596.1,1596.0,4.46128]
[1744887696697,3.7497,1596.1,1596.0,4.46128]
[1744887697405,2.4963,1596.1,1596.0,4.46128]
[1744887697601,3.7497,1596.1,1596.0,4.46128]
[1744887697901,2.4963,1596.1,1596.0,4.46128]
[1744887701104,2.4963,1596.1,1596.0,1.25348]
[1744887702002,2.4963,1596.1,1596.0,4.46128]
[1744887702704,2.4963,1596.1,1596.0,1.25348]
[1744887702898,2.4963,1596.1,1596.0,4.46128]
[1744887703205,2.4963,1596.1,1596.0,1.25348]
[1744887703507,2.4963,1596.1,1596.0,4.46128]
[1744887706506,0.00608102,1596.2,1596.1,1.2534]
[1744887706719,0.00608102,1596.2,1596.1,5.2844]
[1744887707009,3.38578102,1596.2,1596.1,5.2844]
[1744887707408,3.13351,1596.1,1595.8,3.2078]
[1744887707707,1.25371,1595.7,1595.6,5.28477]
[1744887707906,2.978,1596.0,1595.9,1.25356]
[1744887708103,3.13353,1596.1,1595.6,8.91738]
[1744887708301,2.04738,1595.9,1595.8,1.25361]
[1744887708807,0.7938,1595.9,1595.8,1.25361]
[1744887709011,0.84158102,1596.2,1596.0,1.25343]
[1744887709200,2.0472,1596.1,1596.0,1.25343]
[1744887709909,0.7938,1596.1,1596.0,1.25343]
[1744887710108,0.7938,1596.1,1596.0,2.93033]
[1744887710309,0.84158102,1596.2,1596.1,1.2534]
[1744887710504,0.00608102,1596.2,1596.1,7.0056]
[1744887711614,0.00608102,1596.2,1596.1,12.0056]
[1744887712612,0.00608102,1596.2,1596.1,7.0056]
[1744887718522,0.00608102,1596.2,1596.0,8.37737673]
[1744887718816,1.2534,1596.1,1596.0,8.37737673]
[1744887719022,2.9063,1596.1,1596.0,8.37737673]
[1744887719209,7.9063,1596.1,1596.0,8.37737673]
[1744887719912,11.9373,1596.1,1596.0,8.37737673]
[1744887720111,1.25348,1596.0,1595.9,12.5660651]
[1744887720412,4.46128,1596.0,1595.9,12.5660651]
[1744887720613,9.46128,1596.0,1595.9,11.2440651]
[1744887720820,25.96128,1596.0,1595.9,11.2440651]
[1744887722215,1.25371,1595.7,1595.6,1.25373]
[1744887723215,1.25361,1595.9,1595.8,1.25359]
[1744887723414,2.93151,1595.9,1595.8,1.25359]
[1744887726112,1.25368,1595.8,1595.7,1.25365]
[1744887726317,3.71908,1595.8,1595.7,1.25365]
[1744887728013,2.4654,1595.8,1595.7,1.25365]
[1744887728211,2.4654,1595.8,1595.7,2.91625]
[1744887728512,1.25356,1595.9,1595.8,1.25364]
[1744887728711,1.25356,1595.9,1595.8,6.94294]
[1744887729110,2.95586,1595.9,1595.8,6.94294]
[1744887730823,2.95586,1595.9,1595.8,3.73514]
[1744887731015,1.7023,1595.9,1595.8,3.73514]
[1744887731213,2.95586,1595.9,1595.8,6.94294]
[1744887731409,9.01653908,1596.1,1595.8,6.94294]
[1744887731410,6.31325908,1596.1,1595.8,6.94294]
[1744887731626,4.18058908,1596.1,1596.0,4.46128]
[1744887732025,4.18058908,1596.1,1596.0,10.18518]
[1744887733333,0.00608102,1596.2,1596.1,1.2534]
[1744887733520,0.00608102,1596.2,1596.1,3.7798]
[1744887734225,1.25940102,1596.2,1596.1,3.7798]
[1744887734413,2.97610102,1596.2,1596.1,3.7798]
[1744887735018,1.72278102,1596.2,1596.1,3.7798]
[1744887736124,2.97610102,1596.2,1596.1,3.7798]
[1744887736326,1.2534,1596.1,1596.0,8.49322]
[1744887736527,2.9701,1596.1,1596.0,8.49322]
[1744887737220,1.7167,1596.1,1596.0,7.2398]
[1744887737417,2.9701,1596.1,1596.0,4.032]
[1744887737626,1.25348,1596.0,1595.9,0.8731]
[1744887737829,2.85018,1596.0,1595.9,0.8731]
[1744887738931,2.85018,1596.0,1595.9,1.25356]
[1744887739433,1.25356,1595.9,1595.8,5.36357]
[1744887739731,2.4165,1595.9,1595.8,5.36357]
[1744887740527,3.67006,1595.9,1595.8,4.11]
[1744887740729,1.25364,1595.8,1595.7,1.25369]
[1744887740927,1.25371,1595.7,1595.6,1.25373]
[1744887741424,1.6437,1595.8,1595.5,0.00940763]
[1744887741732,2.89749,1595.6,1595.5,0.00940763]
[1744887742223,7.89749,1595.6,1595.5,0.00940763]
[1744887742424,8.72779,1595.6,1595.5,0.00940763]
[1744887744545,8.72779,1595.6,1595.5,1.26327763]
[1744887744724,8.72779,1595.6,1595.5,0.00940763]
[1744887744925,20.22779,1595.6,1595.5,0.00940763]
[1744887745125,3.72779,1595.6,1595.5,0.00940763]
[1744887745538,3.72779,1595.6,1595.5,1.26327763]
[1744887745937,2.474,1595.6,1595.5,1.26327763]
[1744887746136,3.72779,1595.6,1595.5,2.95167763]
[1744887746835,22.49,1595.8,1595.7,1.25371]
[1744887747037,1.25371,1595.7,1595.6,3.80233]
[1744887747236,2.93681,1595.7,1595.6,3.80233]
[1744887747533,1.6831,1595.7,1595.6,3.80233]
[1744887747938,1.25379,1595.6,1595.5,1.26322763]
[1744887748433,2.93687,1595.7,1595.6,1.25379]
[1744887750135,1.6831,1595.7,1595.6,1.25379]
[1744887750642,2.93681,1595.7,1595.6,1.25379]
[1744887751442,2.93681,1595.7,1595.6,2.91379]
[1744887752444,1.25379,1595.6,1595.5,1.26321763]
[1744887752643,2.88729,1595.6,1595.5,2.91771763]
[1744887753946,2.88729,1595.6,1595.5,0.00940763]
[1744887754347,3.68249,1595.6,1595.5,0.00940763]
[1744887755346,3.68249,1595.6,1595.5,1.26327763]
[1744887757242,3.68249,1595.6,1595.5,0.00940763]
[1744887758336,3.68249,1595.6,1595.5,1.26327763]
[1744887758939,21.456,1595.9,1595.6,3.13449]
[1744887759142,1.7444,1595.8,1595.7,1.25371]
[1744887759339,1.7444,1595.8,1595.7,2.84701]
[1744887760037,2.11686,1595.9,1595.8,1.25364]
[1744887760237,3.86126,1595.9,1595.8,2.84694]
[1744887761746,2.99796,1595.9,1595.8,2.84694]
[1744887761950,5.99,1596.0,1595.9,1.25356]
[1744887762250,5.99,1596.0,1595.9,4.58836]
[1744887762541,3.78116,1596.1,1596.0,1.25348]
[1744887762737,1.25348,1596.0,1595.9,4.5883]
[1744887762943,2.93348,1596.0,1595.9,4.5883]
[1744887763143,1.25356,1595.9,1595.8,1.25362]
[1744887763345,2.93356,1595.9,1595.8,1.25362]
[1744887763849,1.25364,1595.8,1595.7,7.84735]
[1744887764049,2.89654,1595.8,1595.7,6.19465]
[1744887764348,3.71464,1595.8,1595.7,6.19465]
[1744887764749,3.71464,1595.8,1595.7,2.08365]
[1744887765650,3.71464,1595.8,1595.7,3.77305]
[1744887769550,2.461,1595.8,1595.7,3.77305]
[1744887770655,3.71464,1595.8,1595.7,3.77305]
[1744887770950,2.461,1595.8,1595.7,3.77305]
[1744887771751,9.12371,1596.0,1595.7,2.5194]
[1744887771752,5.99,1596.0,1595.7,2.5194]
[1744887772053,5.99,1596.0,1595.9,1.25356]
[1744887772252,7.17810908,1596.1,1596.0,1.25348]
[1744887772452,7.17810908,1596.1,1596.0,2.12568]
[1744887772653,7.17810908,1596.1,1596.0,3.73038]
[1744887773249,1.7441,1596.1,1596.0,3.73038]
[1744887773449,4.1866701,1596.2,1596.1,1.2534]
[1744887773650,4.1866701,1596.2,1596.1,7.0289]
[1744887776455,1.25940102,1596.2,1596.1,7.0289]
[1744887776652,2.87430102,1596.2,1596.1,3.8211]
[1744887777655,2.87430102,1596.2,1596.1,2.5677]
[1744887778257,2.87430102,1596.2,1596.1,3.8211]
[1744887779759,2.87430102,1596.2,1596.1,1.2534]
[1744887780449,1.25347,1596.1,1596.0,1.25341]
[1744887780655,2.86057,1596.1,1596.0,1.25341]
[1744887780952,3.73637,1596.1,1596.0,1.25341]
[1744887781158,1.25347,1596.1,1596.0,2.88021]
[1744887781360,2.86057,1596.1,1596.0,2.88021]
[1744887782055,1.6071,1596.1,1596.0,2.88021]
[1744887782457,1.2534,1596.1,1596.0,2.88021]
[1744887782658,1.25947102,1596.2,1596.1,1.2534]
[1744887782958,1.25947102,1596.2,1596.1,2.9744]
[1744887782959,2.98587102,1596.2,1596.1,2.9744]
[1744887783453,1.25947102,1596.2,1596.1,2.9744]
[1744887783652,1.25947102,1596.2,1596.1,1.721]
[1744887784356,2.98587102,1596.2,1596.1,1.721]
[1744887784852,3.82197102,1596.2,1596.1,1.721]
[1744887785052,3.82197102,1596.2,1596.1,2.9744]
[1744887785258,3.82197102,1596.2,1596.1,1.721]
[1744887785561,3.82197102,1596.2,1596.1,2.9744]
[1744887785758,1.25346,1596.1,1595.9,8.983]
[1744887785958,2.93476,1596.1,1596.0,2.9881]
[1744887787152,1.25348,1596.0,1595.9,7.10261]
[1744887787352,2.93478,1596.0,1595.9,0.881]
[1744887789463,2.93478,1596.0,1595.9,2.13456]
[1744887791259,2.93478,1596.0,1595.9,3.77276]
[1744887791460,1.25346,1596.1,1596.0,1.25348]
[1744887791661,1.25346,1596.1,1596.0,3.65428]
[1744887792266,2.96276,1596.1,1596.0,3.65428]
[1744887792669,4.1866701,1596.2,1596.1,1.2534]
[1744887792871,4.1866701,1596.2,1596.1,2.8524]
[1744887795071,5.4399901,1596.2,1596.1,2.8524]
[1744887795272,4.1866701,1596.2,1596.1,2.8524]
[1744887795772,0.00608102,1596.2,1596.1,2.8524]
[1744887796968,1.25940102,1596.2,1596.1,2.8524]
[1744887797270,0.00608102,1596.2,1596.1,2.8524]
[1744887798865,1.63758102,1596.2,1596.1,2.8524]
[1744887799068,0.00608102,1596.2,1596.1,2.8524]
[1744887800669,1.64658102,1596.2,1596.0,5.39146]
[1744887800876,1.2534,1596.1,1596.0,5.39146]
[1744887801173,2.0983,1596.1,1596.0,1.25346]
[1744887801374,3.7388,1596.1,1596.0,1.25346]
[1744887801572,0.00608102,1596.2,1596.1,1.2534]
[1744887801773,1.25940102,1596.2,1596.1,1.2534]
[1744887801973,4.54170102,1596.2,1596.1,1.2534]
[1744887803076,0.00608102,1596.2,1596.1,1.2534]
[1744887803275,0.00608102,1596.2,1596.1,2.8992]
[1744887804086,0.00608102,1596.2,1596.1,7.0372]
[1744887814582,0.00608102,1596.2,1596.1,7.53579055]
[1744887814974,0.00608102,1596.2,1596.1,7.0372]
[1744887817283,0.00608102,1596.2,1596.1,7.53462181]
[1744887819182,0.00608102,1596.2,1596.1,7.0372]
[1744887819983,0.00608102,1596.2,1596.1,7.5297716]
[1744887820582,0.00608102,1596.2,1596.1,7.0372]
[1744887828092,0.8589,1596.5,1596.4,1.25316]
[1744887828279,2.5794,1596.5,1596.4,1.25316]
[1744887828483,2.5794,1596.5,1596.4,2.88786]
[1744887828784,2.5794,1596.5,1596.4,1.25316]
[1744887831290,1.2532,1596.4,1596.3,1.25319]
[1744887831492,3.7297,1596.4,1596.3,1.25319]
[1744887832493,2.4765,1596.4,1596.3,1.25319]
[1744887834193,3.72966,1596.4,1596.3,1.25319]
[1744887834591,2.4765,1596.4,1596.3,1.25319]
[1744887839197,3.72966,1596.4,1596.3,1.25319]
[1744887842991,1.2534,1596.1,1596.0,5.856]
[1744887843196,1.25356,1595.9,1595.8,13.71461415]
[1744887843697,2.92826,1595.9,1595.8,13.71461415]
[1744887843994,1.6747,1595.9,1595.8,16.92241415]
[1744887844199,1.6747,1595.9,1595.8,18.56051415]
[1744887844499,1.25329,1596.3,1595.9,3.1339]
[1744887844698,2.5054,1596.2,1596.1,1.2534]
[1744887844896,2.5054,1596.2,1596.1,4.4612]
[1744887845095,2.5054,1596.2,1596.1,1.2534]
[1744887845296,2.5054,1596.2,1596.1,4.4612]
[1744887845497,2.5054,1596.2,1596.1,6.0993]
[1744887846393,8.28658908,1596.4,1596.3,1.25324]
[1744887846594,6.66968908,1596.4,1596.3,1.25324]
[1744887847300,7.92284908,1596.4,1596.3,1.25324]
[1744887847598,6.66968908,1596.4,1596.3,3.75694]
[1744887848098,5.79248908,1596.4,1596.3,3.75694]
[1744887848993,5.79248908,1596.4,1596.3,6.96474]
[1744887851201,5.79248908,1596.4,1596.3,11.07074]
[1744887852603,7.04564908,1596.4,1596.3,11.07074]
[1744887852804,2.86506,1596.4,1596.3,11.07074]
[1744887853102,1.6119,1596.4,1596.3,11.07074]
[1744887854210,1.6119,1596.4,1596.3,7.86294]
[1744887856005,1.6119,1596.4,1596.3,11.07074]
[1744887856403,0.8772,1596.5,1596.4,1.25316]
[1744887856711,4.18058908,1596.5,1596.4,2.93196]
[1744887861123,5.80888908,1596.5,1596.4,2.93196]
[1744887861326,1.6283,1596.5,1596.4,2.93196]
[1744887863022,1.6283,1596.5,1596.4,1.25316]
[1744887863429,2.4421,1596.5,1596.4,1.25316]
[1744887863629,2.4421,1596.5,1596.4,2.91626]
[1744887866329,2.4421,1596.5,1596.4,1.25316]
[1744887867432,2.4421,1596.5,1596.4,2.98596]
[1744887868632,5.43357908,1596.7,1596.6,1.25301]
[1744887868833,7.96717908,1596.7,1596.6,1.25301]
[1744887869427,7.96711908,1596.7,1596.6,1.25301]
[1744887869834,6.71418908,1596.7,1596.6,1.25301]
[1744887874038,6.71418908,1596.7,1596.6,2.96771]
[1744887874534,5.89748908,1596.7,1596.6,2.96771]
[1744887879242,4.18058908,1596.7,1596.6,2.96771]
[1744887880145,1.6826,1596.9,1596.7,1.25293]
[1744887880333,5.02498908,1597.0,1596.9,1.25277]
[1744887880733,6.64628908,1597.0,1596.9,3.81147]
[1744887880934,4.18058908,1597.0,1596.9,11.10527]
[1744887882530,2.66699908,1597.0,1596.9,16.10527]
[1744887882731,6.98474587,1597.2,1597.1,1.25262]
[1744887882939,6.98474587,1597.2,1597.1,4.46042]
[1744887883234,6.98474587,1597.2,1597.1,13.54542]
[1744887883436,6.98474587,1597.2,1597.1,16.08762]
[1744887883835,6.98474587,1597.2,1597.1,11.08762]
[1744887884545,6.98474587,1597.2,1597.1,7.00262]
[1744887884840,8.64784587,1597.2,1597.1,7.00262]
[1744887885041,9.47764587,1597.2,1597.1,7.00262]
[1744887885343,9.47764587,1597.2,1597.1,5.31662]
[1744887885937,9.47764587,1597.2,1597.1,3.2078]
[1744887886242,10.73018587,1597.2,1597.1,3.2078]
[1744887886441,9.47764587,1597.2,1597.1,4.46042]
[1744887886735,2.4929,1597.2,1597.1,4.46042]
[1744887886940,2.4929,1597.2,1596.9,1.25273]
[1744887887144,1.25288,1596.8,1596.5,11.54263784]
[1744887887444,2.4395,1596.7,1596.6,1.25301]
[1744887887935,2.4395,1596.7,1596.6,2.93011]
[1744887888138,1.6371,1596.7,1596.6,2.93011]
[1744887890340,0.8804,1596.9,1596.8,1.25285]
[1744887891146,0.8804,1596.9,1596.8,2.10255]
[1744887891545,0.8804,1596.9,1596.8,3.74055]
[1744887892139,2.4371,1597.0,1596.9,1.25277]
[1744887894046,2.4371,1597.0,1596.9,7.06807]
[1744887897554,5.99,1597.3,1597.2,1.25254]
[1744887897753,7.7142,1597.3,1597.2,1.25254]
[1744887897945,0.8467,1597.3,1597.2,1.25254]
[1744887899040,2.5193,1597.3,1597.2,1.25254]
[1744887901051,7.2422,1597.7,1597.4,1.25238]
[1744887901247,1.7447,1597.5,1597.4,1.25238]
[1744887901547,0.8095,1597.6,1597.5,1.2523]
[1744887901752,2.5542,1597.6,1597.5,1.2523]
[1744887901946,3.80642,1597.6,1597.5,1.2523]
[1744887902142,1.2523,1597.5,1597.4,0.00940763]
[1744887902346,2.997,1597.5,1597.4,1.26178763]
[1744887902547,2.997,1597.5,1597.4,0.00940763]
[1744887903054,2.997,1597.5,1597.4,1.26178763]
[1744887904653,7.997,1597.5,1597.4,0.00940763]
[1744887904845,2.997,1597.5,1597.4,0.00940763]
[1744887905157,2.997,1597.5,1597.4,1.26178763]
[1744887906662,1.25261,1597.2,1597.1,1.25257]
[1744887906863,1.25253,1597.3,1597.2,1.25247]
[1744887907158,7.6082,1597.4,1597.3,1.25246]
[1744887907349,8.86058,1597.4,1597.3,1.25246]
[1744887907550,1.25254,1597.3,1597.2,1.25248]
[1744887907856,1.25262,1597.2,1597.1,1.26199763]
[1744887908158,2.07162,1597.2,1597.1,0.00940763]
[1744887909059,7.07162,1597.2,1597.1,0.00940763]
[1744887909453,10.27942,1597.2,1597.1,0.00940763]
[1744887909854,7.07162,1597.2,1597.1,0.00940763]
[1744887910861,16.26942,1597.2,1597.1,0.00940763]
[1744887911051,20.37042,1597.2,1597.1,0.00940763]
[1744887911248,1.25277,1596.9,1596.8,5.31321]
[1744887911761,2.11536,1597.0,1596.9,1.25277]
[1744887913549,1.25276,1597.0,1596.9,1.25277]
[1744887913755,2.10646,1597.0,1596.9,1.25277]
[1744887914261,1.25266,1597.1,1597.0,1.25269]
[1744887914457,7.2426,1597.2,1597.1,1.25262]
[1744887915961,1.2526,1597.2,1597.1,2.13032]
[1744887916155,2.10622,1597.3,1597.2,1.25254]
[1744887916354,1.25252,1597.3,1597.2,1.25254]
[1744887916557,1.25252,1597.3,1597.2,2.87454]
[1744887918357,2.12764763,1597.4,1597.3,1.25246]
[1744887918564,2.12764763,1597.4,1597.3,3.69886]
[1744887920466,0.87520763,1597.4,1597.1,0.8777]
[1744887920661,1.25253,1597.3,1597.2,1.25249]
[1744887922165,2.12764763,1597.4,1597.3,1.25246]
[1744887924163,3.74954763,1597.4,1597.3,1.25246]
[1744887924365,3.74954763,1597.4,1597.3,3.79166]
[1744887925159,3.74954763,1597.4,1597.3,1.7363]
[1744887925366,1.25246,1597.3,1597.2,1.25247]
[1744887925662,2.84616,1597.3,1597.2,1.25247]
[1744887925862,3.65036,1597.3,1597.2,1.25247]
[1744887926960,2.84616,1597.3,1597.2,1.25247]
[1744887927164,1.5937,1597.3,1597.2,3.73857]
[1744887929469,2.84616,1597.3,1597.2,3.73857]
[1744887929662,2.12765763,1597.4,1597.3,1.25246]
[1744887929863,0.00940763,1597.4,1597.3,2.90196]
[1744887930362,1.26178763,1597.4,1597.3,2.90196]
[1744887930570,1.25246,1597.3,1597.2,4.134]
[1744887930769,1.25254,1597.2,1597.1,2.13031]
[1744887930974,1.25254,1597.2,1597.1,0.8777]
[1744887931263,2.95254,1597.2,1597.1,0.8777]
[1744887931469,2.95254,1597.2,1597.1,2.13032]
[1744887934372,2.95254,1597.2,1597.1,3.72202]
[1744887934568,2.95254,1597.2,1597.1,2.13032]
[1744887935070,2.95254,1597.2,1597.1,0.8777]
[1744887935271,1.25262,1597.1,1597.0,3.68414]
[1744887935464,2.92222,1597.1,1597.0,3.68414]
[1744887936775,2.92222,1597.1,1597.0,2.09024]
[1744887937076,2.92222,1597.1,1597.0,1.25264]
[1744887938274,2.92222,1597.1,1597.0,2.89864]
[1744887939979,1.25262,1597.1,1597.0,2.89864]
[1744887940968,2.84092,1597.1,1597.0,2.89864]
[1744887942075,2.84092,1597.1,1597.0,1.25264]
[1744887943083,1.25269,1597.0,1596.9,5.27853]
[1744887943376,3.71099,1597.0,1596.9,2.07073]
[1744887944579,1.25277,1596.9,1596.8,2.86669763]
[1744887944876,2.90587,1596.9,1596.8,2.86669763]
[1744887945079,2.90587,1596.9,1596.8,0.00940763]
[1744887946574,6.6531,1596.9,1596.5,9.14563021]
[1744887946879,4.46081,1596.6,1596.5,8.32543021]
[1744887947271,7.09211,1596.6,1596.5,8.32543021]
[1744887947473,12.09211,1596.6,1596.5,8.32543021]
[1744887947774,1.25324,1596.3,1596.2,2.04134401]
[1744887947980,4.46104,1596.3,1596.2,2.04134401]
[1744887948375,7.09234,1596.3,1596.2,2.04134401]
[1744887951583,1.25332,1596.2,1596.1,0.00940763]
[1744887951783,2.88462,1596.2,1596.1,0.00940763]
[1744887952780,3.73462,1596.2,1596.1,0.00940763]
[1744887953784,2.88462,1596.2,1596.1,1.26280763]
[1744887953984,10.13240763,1596.4,1596.1,3.14280763]
[1744887954184,0.00940763,1596.4,1596.3,1.25324]
[1744887954377,0.00940763,1596.4,1596.3,3.00574]